[Event "Titled Tuesday Blitz August 08 Early 2023"]
[White "Yuruultei Batbaatar"]
[Black "Martins, Bruno Andre Leite"]
[WhiteFideId "4905962"]
[BlackFideId "1942255"]
[WhiteElo "1433"]
[BlackElo "2527"]
[Result "0-1"]
[Round "1"]
[TimeControl "180+1"]
[Date "2023.08.08"]
[WhiteClock "0:00:21"]
[BlackClock "0:00:09"]
[Board "273"]

1. d4 {[%clk 0:02:59]}  Nf6 {[%clk 0:02:57]} 2. c4 {[%clk 0:02:59]}  e6 {[%clk 0:02:57]} 3. Nf3 {[%clk 0:02:56]}  d5 {[%clk 0:02:57]} 4. g3 {[%clk 0:02:56]}  c5 {[%clk 0:02:50]} 5. Bg2 {[%clk 0:02:54]}  cxd4 {[%clk 0:02:48]} 6. Nxd4 {[%clk 0:02:51]}  Nc6 {[%clk 0:02:48]} 7. O-O {[%clk 0:02:50]}  Bc5 {[%clk 0:02:44]} 8. Be3 {[%clk 0:02:43]}  Qb6 {[%clk 0:02:39]} 9. Nxc6 {[%clk 0:02:34]}  Bxe3 {[%clk 0:02:37]} 10. Ne5 {[%clk 0:02:25]}  Bd4 {[%clk 0:02:30]} 11. Nd3 {[%clk 0:01:43]}  dxc4 {[%clk 0:02:27]} 12. e3 {[%clk 0:01:42]}  cxd3 {[%clk 0:02:23]} 13. exd4 {[%clk 0:01:41]}  Qxd4 {[%clk 0:02:23]} 14. Nc3 {[%clk 0:01:34]}  O-O {[%clk 0:02:21]} 15. Nb5 {[%clk 0:01:31]}  Qd7 {[%clk 0:02:18]} 16. Qb3 {[%clk 0:01:24]}  a6 {[%clk 0:02:13]} 17. Nc3 {[%clk 0:01:22]}  Rd8 {[%clk 0:02:08]} 18. Na4 {[%clk 0:01:16]}  Rb8 {[%clk 0:01:51]} 19. Rfd1 {[%clk 0:01:12]}  b5 {[%clk 0:01:48]} 20. Nc5 {[%clk 0:01:10]}  Qe7 {[%clk 0:01:48]} 21. Nxd3 {[%clk 0:01:09]}  Bb7 {[%clk 0:01:47]} 22. Ne5 {[%clk 0:01:07]}  Bxg2 {[%clk 0:01:45]} 23. Kxg2 {[%clk 0:01:08]}  Qb7+ {[%clk 0:01:44]} 24. Qf3 {[%clk 0:01:05]}  Nd5 {[%clk 0:01:44]} 25. Rac1 {[%clk 0:01:02]}  Rbc8 {[%clk 0:01:44]} 26. a3 {[%clk 0:00:54]}  f6 {[%clk 0:01:21]} 27. Rxc8 {[%clk 0:00:49]}  Qxc8 {[%clk 0:01:16]} 28. Nd3 {[%clk 0:00:39]}  Qc2 {[%clk 0:01:15]} 29. Rc1 {[%clk 0:00:39]}  Qxd3 {[%clk 0:00:48]} 30. Qxd3 {[%clk 0:00:36]}  Nf4+ {[%clk 0:00:48]} 31. gxf4 {[%clk 0:00:37]}  Rxd3 {[%clk 0:00:48]} 32. Rc6 {[%clk 0:00:34]}  a5 {[%clk 0:00:41]} 33. Rxe6 {[%clk 0:00:31]}  Rb3 {[%clk 0:00:39]} 34. Re2 {[%clk 0:00:26]}  Kf7 {[%clk 0:00:38]} 35. Rc2 {[%clk 0:00:21]}  Kg6 {[%clk 0:00:36]} 36. f3 {[%clk 0:00:17]}  a4 {[%clk 0:00:34]} 37. Kg3 {[%clk 0:00:17]}  Kf5 {[%clk 0:00:31]} 38. Rc5+ {[%clk 0:00:16]}  Ke6 {[%clk 0:00:31]} 39. Rc6+ {[%clk 0:00:15]}  Kd5 {[%clk 0:00:31]} 40. Rc2 {[%clk 0:00:16]}  Kd4 {[%clk 0:00:28]} 41. Kf2 {[%clk 0:00:14]}  h5 {[%clk 0:00:23]} 42. h4 {[%clk 0:00:13]}  Kd3 {[%clk 0:00:19]} 43. Rc7 {[%clk 0:00:11]}  Rxb2+ {[%clk 0:00:19]} 44. Kg3 {[%clk 0:00:11]}  b4 {[%clk 0:00:12]} 45. axb4 {[%clk 0:00:10]}  a3 {[%clk 0:00:13]} 46. Rxg7 {[%clk 0:00:10]}  a2 {[%clk 0:00:11]} 47. Ra7 {[%clk 0:00:10]}  Kc2 {[%clk 0:00:12]} 48. b5 {[%clk 0:00:10]}  Kb1 {[%clk 0:00:12]} 49. b6 {[%clk 0:00:09]}  Rxb6 {[%clk 0:00:11]} 50. f5 {[%clk 0:00:09]}  Rb4 {[%clk 0:00:10]} 51. f4 {[%clk 0:00:07]}  a1=Q {[%clk 0:00:10]} 52. Rxa1+ {[%clk 0:00:08]}  Kxa1 {[%clk 0:00:11]} 53. Kf3 {[%clk 0:00:09]}  Kb2 {[%clk 0:00:12]} 54. Kf2 {[%clk 0:00:10]}  Kc3 {[%clk 0:00:13]} 55. Ke3 {[%clk 0:00:10]}  Kc4 {[%clk 0:00:13]} 56. Ke4 {[%clk 0:00:11]}  Rb5 {[%clk 0:00:11]} 57. Ke3 {[%clk 0:00:11]}  Rxf5 {[%clk 0:00:11]} 58. Kf3 {[%clk 0:00:11]}  Kd4 {[%clk 0:00:10]} 59. Kg3 {[%clk 0:00:12]}  Ke4 {[%clk 0:00:11]} 60. Kh3 {[%clk 0:00:12]}  Kxf4 {[%clk 0:00:11]} 61. Kh2 {[%clk 0:00:13]}  Kg4 {[%clk 0:00:11]} 62. Kg2 {[%clk 0:00:14]}  Kxh4 {[%clk 0:00:11]} 63. Kh2 {[%clk 0:00:14]}  Rf2+ {[%clk 0:00:11]} 64. Kg1 {[%clk 0:00:14]}  Kg3 {[%clk 0:00:11]} 65. Kh1 {[%clk 0:00:14]}  h4 {[%clk 0:00:10]} 66. Kg1 {[%clk 0:00:15]}  h3 {[%clk 0:00:10]} 67. Kh1 {[%clk 0:00:16]}  f5 {[%clk 0:00:09]} 68. Kg1 {[%clk 0:00:17]}  f4 {[%clk 0:00:09]} 69. Kh1 {[%clk 0:00:18]}  f3 {[%clk 0:00:09]} 70. Kg1 {[%clk 0:00:19]}  Ra2 {[%clk 0:00:09]} 71. Kh1 {[%clk 0:00:20]}  Rh2+ {[%clk 0:00:05]} 72. Kg1 {[%clk 0:00:21]}  f2+ {[%clk 0:00:05]} 73. Kf1 {[%clk 0:00:22]}  Rh1+ {[%clk 0:00:06]} 74. Ke2 {[%clk 0:00:21]}  f1=Q+ {[%clk 0:00:07]} 75. Ke3 {[%clk 0:00:21]}  Qf3+ {[%clk 0:00:08]} 76. Kd2 {[%clk 0:00:22]}  Rd1+ {[%clk 0:00:08]} 77. Kc2 {[%clk 0:00:20]}  h2 {[%clk 0:00:08]} 78. Kb2 {[%clk 0:00:21]}  h1=Q {[%clk 0:00:09]} 79. Ka2 {[%clk 0:00:22]}  Ra1+ {[%clk 0:00:08]} 80. Kb2 {[%clk 0:00:21]}  Qc1# {[%clk 0:00:09]} 0-1


[Site "https://www.chess.com"]

[Event "Titled Tuesday Blitz August 08 Early 2023"]
[White "Carlsen, Magnus"]
[Black "Goh, Wei Ming Kevin"]
[WhiteFideId "1503014"]
[BlackFideId "5800706"]
[WhiteElo "3253"]
[BlackElo "2664"]
[Result "1-0"]
[Round "2"]
[TimeControl "180+1"]
[Date "2023.08.08"]
[WhiteClock "0:01:47"]
[BlackClock "0:00:00"]
[Board "1"]

1. c4 {[%clk 0:02:45]}  Nf6 {[%clk 0:02:55]} 2. Nc3 {[%clk 0:02:45]}  e5 {[%clk 0:02:54]} 3. e3 {[%clk 0:02:45]}  Bb4 {[%clk 0:02:45]} 4. Nge2 {[%clk 0:02:44]}  O-O {[%clk 0:02:40]} 5. a3 {[%clk 0:02:44]}  Bxc3 {[%clk 0:02:31]} 6. Nxc3 {[%clk 0:02:43]}  c6 {[%clk 0:02:27]} 7. d4 {[%clk 0:02:43]}  exd4 {[%clk 0:02:26]} 8. Qxd4 {[%clk 0:02:39]}  Na6 {[%clk 0:02:10]} 9. Be2 {[%clk 0:02:34]}  Nc7 {[%clk 0:02:03]} 10. O-O {[%clk 0:02:34]}  d5 {[%clk 0:02:01]} 11. Rd1 {[%clk 0:02:34]}  Qe7 {[%clk 0:01:56]} 12. cxd5 {[%clk 0:02:27]}  Ncxd5 {[%clk 0:01:55]} 13. Nxd5 {[%clk 0:02:26]}  Nxd5 {[%clk 0:01:56]} 14. e4 {[%clk 0:02:27]}  Nb6 {[%clk 0:01:52]} 15. Bf4 {[%clk 0:02:19]}  Re8 {[%clk 0:01:50]} 16. Bf1 {[%clk 0:02:10]}  Be6 {[%clk 0:01:44]} 17. Bd6 {[%clk 0:02:10]}  Qg5 {[%clk 0:01:33]} 18. f4 {[%clk 0:02:07]}  Qa5 {[%clk 0:01:07]} 19. f5 {[%clk 0:02:05]}  Bb3 {[%clk 0:01:03]} 20. Rd3 {[%clk 0:02:03]}  Qa4 {[%clk 0:00:55]} 21. Bb4 {[%clk 0:02:03]}  f6 {[%clk 0:00:42]} 22. Re1 {[%clk 0:02:03]}  Kh8 {[%clk 0:00:31]} 23. e5 {[%clk 0:02:02]}  fxe5 {[%clk 0:00:31]} 24. Qh4 {[%clk 0:01:58]}  Nd5 {[%clk 0:00:20]} 25. Rh3 {[%clk 0:01:54]}  Nf6 {[%clk 0:00:20]} 26. g4 {[%clk 0:01:51]}  Bg8 {[%clk 0:00:10]} 27. g5 {[%clk 0:01:51]}  Nd5 {[%clk 0:00:11]} 28. f6 {[%clk 0:01:52]}  gxf6 {[%clk 0:00:08]} 29. gxf6 {[%clk 0:01:52]}  Re6 {[%clk 0:00:00]} 30. Bf8 {[%clk 0:01:47]} 1-0


[Site "https://www.chess.com"]

[Event "Titled Tuesday Blitz August 08 Early 2023"]
[White "Sokolovsky, Yahli"]
[Black "Sarana, Alexey"]
[WhiteFideId "2820242"]
[BlackFideId "24133795"]
[WhiteElo "2654"]
[BlackElo "3096"]
[Result "1-0"]
[Round "2"]
[TimeControl "180+1"]
[Date "2023.08.08"]
[WhiteClock "0:00:09"]
[BlackClock "0:00:05"]
[Board "3"]

1. b3 {[%clk 0:03:00]}  e5 {[%clk 0:02:58]} 2. Bb2 {[%clk 0:03:01]}  Nc6 {[%clk 0:02:59]} 3. e3 {[%clk 0:03:02]}  d5 {[%clk 0:02:59]} 4. Nf3 {[%clk 0:03:00]}  e4 {[%clk 0:02:59]} 5. Nd4 {[%clk 0:03:01]}  Ne5 {[%clk 0:02:59]} 6. c4 {[%clk 0:02:59]}  dxc4 {[%clk 0:02:58]} 7. Bxc4 {[%clk 0:02:53]}  Nxc4 {[%clk 0:02:52]} 8. bxc4 {[%clk 0:02:54]}  c5 {[%clk 0:02:51]} 9. Nb5 {[%clk 0:02:51]}  a6 {[%clk 0:02:46]} 10. N5c3 {[%clk 0:02:37]}  Nf6 {[%clk 0:02:46]} 11. Qc2 {[%clk 0:02:33]}  Qb6 {[%clk 0:02:36]} 12. Nxe4 {[%clk 0:02:26]}  Nxe4 {[%clk 0:02:13]} 13. Qxe4+ {[%clk 0:02:27]}  Be6 {[%clk 0:02:13]} 14. Be5 {[%clk 0:01:52]}  Be7 {[%clk 0:02:03]} 15. Nc3 {[%clk 0:01:28]}  f6 {[%clk 0:01:49]} 16. Rb1 {[%clk 0:01:19]}  Qc6 {[%clk 0:01:48]} 17. Qxc6+ {[%clk 0:00:29]}  bxc6 {[%clk 0:01:49]} 18. Bg3 {[%clk 0:00:30]}  Bxc4 {[%clk 0:01:46]} 19. Rb7 {[%clk 0:00:30]}  Rd8 {[%clk 0:01:41]} 20. Kd1 {[%clk 0:00:27]}  h5 {[%clk 0:01:32]} 21. h4 {[%clk 0:00:26]}  Kf7 {[%clk 0:01:32]} 22. Kc2 {[%clk 0:00:26]}  Bd3+ {[%clk 0:01:29]} 23. Kb2 {[%clk 0:00:27]}  Ke6 {[%clk 0:01:26]} 24. Na4 {[%clk 0:00:26]}  c4 {[%clk 0:01:24]} 25. Kc3 {[%clk 0:00:25]}  Rd5 {[%clk 0:01:23]} 26. Rc7 {[%clk 0:00:19]}  Rb5 {[%clk 0:01:17]} 27. Rxc6+ {[%clk 0:00:19]}  Kf5 {[%clk 0:01:15]} 28. Bd6 {[%clk 0:00:14]}  Bd8 {[%clk 0:00:48]} 29. Bc7 {[%clk 0:00:13]}  Be7 {[%clk 0:00:36]} 30. Bd6 {[%clk 0:00:13]}  Bxd6 {[%clk 0:00:34]} 31. Rxd6 {[%clk 0:00:13]}  Ra5 {[%clk 0:00:35]} 32. Kb4 {[%clk 0:00:14]}  Rb5+ {[%clk 0:00:35]} 33. Ka3 {[%clk 0:00:15]}  Ra5 {[%clk 0:00:33]} 34. Kb4 {[%clk 0:00:10]}  Rb5+ {[%clk 0:00:24]} 35. Kc3 {[%clk 0:00:10]}  Ra8 {[%clk 0:00:23]} 36. Rb6 {[%clk 0:00:07]}  Rd5 {[%clk 0:00:18]} 37. f3 {[%clk 0:00:07]}  Kg6 {[%clk 0:00:18]} 38. e4 {[%clk 0:00:07]}  Rdd8 {[%clk 0:00:18]} 39. Nc5 {[%clk 0:00:07]}  a5 {[%clk 0:00:16]} 40. a4 {[%clk 0:00:06]}  Rac8 {[%clk 0:00:15]} 41. Rb5 {[%clk 0:00:06]}  Ra8 {[%clk 0:00:13]} 42. Re1 {[%clk 0:00:07]}  Kh6 {[%clk 0:00:12]} 43. e5 {[%clk 0:00:07]}  fxe5 {[%clk 0:00:11]} 44. Rxe5 {[%clk 0:00:08]}  g6 {[%clk 0:00:12]} 45. Ne6 {[%clk 0:00:07]}  Rd7 {[%clk 0:00:11]} 46. Ng5 {[%clk 0:00:07]}  Bf5 {[%clk 0:00:11]} 47. Rbd5 {[%clk 0:00:06]}  Rb7 {[%clk 0:00:11]} 48. Rb5 {[%clk 0:00:06]}  Rd7 {[%clk 0:00:11]} 49. Red5 {[%clk 0:00:07]}  Re7 {[%clk 0:00:10]} 50. Rbc5 {[%clk 0:00:05]}  Rb8 {[%clk 0:00:08]} 51. Rxc4 {[%clk 0:00:05]}  Reb7 {[%clk 0:00:07]} 52. Rb5 {[%clk 0:00:03]}  Rxb5 {[%clk 0:00:07]} 53. axb5 {[%clk 0:00:04]}  Kg7 {[%clk 0:00:08]} 54. Rc7+ {[%clk 0:00:04]}  Kf8 {[%clk 0:00:06]} 55. Rc5 {[%clk 0:00:04]}  Ke7 {[%clk 0:00:06]} 56. d4 {[%clk 0:00:05]}  Bd7 {[%clk 0:00:05]} 57. b6 {[%clk 0:00:04]}  a4 {[%clk 0:00:05]} 58. Ra5 {[%clk 0:00:02]}  Rxb6 {[%clk 0:00:05]} 59. Ra7 {[%clk 0:00:02]}  Rb3+ {[%clk 0:00:05]} 60. Kc4 {[%clk 0:00:03]}  Rb2 {[%clk 0:00:06]} 61. Ne4 {[%clk 0:00:03]}  Kd8 {[%clk 0:00:05]} 62. Nc5 {[%clk 0:00:03]}  Bf5 {[%clk 0:00:04]} 63. Kd5 {[%clk 0:00:03]}  Rxg2 {[%clk 0:00:04]} 64. Kd6 {[%clk 0:00:03]}  Ke8 {[%clk 0:00:03]} 65. Ra8+ {[%clk 0:00:02]}  Kf7 {[%clk 0:00:04]} 66. d5 {[%clk 0:00:03]}  Rg3 {[%clk 0:00:03]} 67. Rxa4 {[%clk 0:00:03]}  Rxf3 {[%clk 0:00:03]} 68. Ra7+ {[%clk 0:00:04]}  Kf6 {[%clk 0:00:04]} 69. Ra8 {[%clk 0:00:04]}  Rf4 {[%clk 0:00:04]} 70. Rf8+ {[%clk 0:00:04]}  Kg7 {[%clk 0:00:04]} 71. Ne6+ {[%clk 0:00:05]}  Bxe6 {[%clk 0:00:02]} 72. Rxf4 {[%clk 0:00:06]}  Bf5 {[%clk 0:00:03]} 73. Ke5 {[%clk 0:00:05]}  Bc8 {[%clk 0:00:03]} 74. d6 {[%clk 0:00:05]}  g5 {[%clk 0:00:03]} 75. hxg5 {[%clk 0:00:06]}  Kg6 {[%clk 0:00:04]} 76. Rf8 {[%clk 0:00:06]}  Bd7 {[%clk 0:00:05]} 77. Rd8 {[%clk 0:00:06]}  Bh3 {[%clk 0:00:05]} 78. d7 {[%clk 0:00:06]}  Bxd7 {[%clk 0:00:04]} 79. Rxd7 {[%clk 0:00:07]}  Kxg5 {[%clk 0:00:05]} 80. Rg7+ {[%clk 0:00:07]}  Kh6 {[%clk 0:00:05]} 81. Rg1 {[%clk 0:00:07]}  h4 {[%clk 0:00:06]} 82. Kf4 {[%clk 0:00:08]}  Kh5 {[%clk 0:00:05]} 83. Rh1 {[%clk 0:00:09]} 1-0


[Site "https://www.chess.com"]

[Event "Titled Tuesday Blitz August 08 Early 2023"]
[White "Ovchinnikov, Vsevolod"]
[Black "Caruana, Fabiano"]
[WhiteFideId "24176842"]
[BlackFideId "2020009"]
[WhiteElo "2648"]
[BlackElo "3089"]
[Result "0-1"]
[Round "2"]
[TimeControl "180+1"]
[Date "2023.08.08"]
[WhiteClock "0:00:04"]
[BlackClock "0:00:53"]
[Board "5"]

1. d4 {[%clk 0:03:00]}  Nf6 {[%clk 0:02:54]} 2. c4 {[%clk 0:03:01]}  d6 {[%clk 0:02:51]} 3. Nf3 {[%clk 0:03:01]}  g6 {[%clk 0:02:51]} 4. Nc3 {[%clk 0:03:00]}  Bf5 {[%clk 0:02:51]} 5. Nh4 {[%clk 0:02:59]}  Bd7 {[%clk 0:02:50]} 6. e4 {[%clk 0:02:58]}  e5 {[%clk 0:02:48]} 7. Nf3 {[%clk 0:02:35]}  Nc6 {[%clk 0:02:48]} 8. d5 {[%clk 0:02:33]}  Ne7 {[%clk 0:02:48]} 9. h3 {[%clk 0:02:14]}  Bg7 {[%clk 0:02:47]} 10. g4 {[%clk 0:02:10]}  O-O {[%clk 0:02:47]} 11. Rg1 {[%clk 0:02:09]}  c6 {[%clk 0:02:46]} 12. Bd3 {[%clk 0:02:07]}  cxd5 {[%clk 0:02:38]} 13. cxd5 {[%clk 0:02:08]}  b5 {[%clk 0:02:38]} 14. a3 {[%clk 0:02:03]}  a5 {[%clk 0:02:37]} 15. Be3 {[%clk 0:01:57]}  b4 {[%clk 0:02:36]} 16. Ne2 {[%clk 0:01:57]}  Nexd5 {[%clk 0:02:35]} 17. exd5 {[%clk 0:01:50]}  e4 {[%clk 0:02:36]} 18. Nf4 {[%clk 0:01:47]}  exd3 {[%clk 0:02:34]} 19. Qxd3 {[%clk 0:01:47]}  Re8 {[%clk 0:02:30]} 20. Nd2 {[%clk 0:01:41]}  Rb8 {[%clk 0:02:24]} 21. a4 {[%clk 0:01:14]}  b3 {[%clk 0:02:16]} 22. Kf1 {[%clk 0:01:13]}  Rb4 {[%clk 0:02:13]} 23. Kg2 {[%clk 0:01:00]}  Bxa4 {[%clk 0:02:11]} 24. Qa6 {[%clk 0:00:39]}  g5 {[%clk 0:02:01]} 25. Nh5 {[%clk 0:00:27]}  Nxh5 {[%clk 0:01:50]} 26. gxh5 {[%clk 0:00:28]}  g4 {[%clk 0:01:50]} 27. Kh1 {[%clk 0:00:12]}  Qh4 {[%clk 0:01:38]} 28. Qf1 {[%clk 0:00:11]}  Bxb2 {[%clk 0:01:10]} 29. Rb1 {[%clk 0:00:11]}  Bc3 {[%clk 0:00:57]} 30. Nf3 {[%clk 0:00:11]}  Qxh5 {[%clk 0:00:56]} 31. Nh2 {[%clk 0:00:11]}  Qxd5+ {[%clk 0:00:55]} 32. Rg2 {[%clk 0:00:05]}  Bc6 {[%clk 0:00:54]} 33. Nxg4 {[%clk 0:00:04]}  Qxg2+ {[%clk 0:00:53]} 34. Qxg2 {[%clk 0:00:05]}  Bxg2+ {[%clk 0:00:53]} 35. Kxg2 {[%clk 0:00:04]}  a4 {[%clk 0:00:53]} 0-1


[Site "https://www.chess.com"]

[Event "Titled Tuesday Blitz August 08 Early 2023"]
[White "Fedoseev, Vladimir"]
[Black "Yaran, Siar"]
[WhiteFideId "24130737"]
[BlackFideId "6323006"]
[WhiteElo "3083"]
[BlackElo "2648"]
[Result "1-0"]
[Round "2"]
[TimeControl "180+1"]
[Date "2023.08.08"]
[WhiteClock "0:00:15"]
[BlackClock "0:00:00"]
[Board "6"]

1. Nf3 {[%clk 0:02:49]}  Nf6 {[%clk 0:02:59]} 2. g3 {[%clk 0:02:49]}  e6 {[%clk 0:03:00]} 3. Bg2 {[%clk 0:02:49]}  d5 {[%clk 0:03:00]} 4. O-O {[%clk 0:02:50]}  Be7 {[%clk 0:03:01]} 5. c4 {[%clk 0:02:49]}  O-O {[%clk 0:03:01]} 6. d3 {[%clk 0:02:49]}  b6 {[%clk 0:02:59]} 7. cxd5 {[%clk 0:02:48]}  Nxd5 {[%clk 0:02:58]} 8. a3 {[%clk 0:02:41]}  Bb7 {[%clk 0:02:58]} 9. b4 {[%clk 0:02:40]}  a5 {[%clk 0:02:50]} 10. b5 {[%clk 0:02:38]}  a4 {[%clk 0:02:49]} 11. Bb2 {[%clk 0:02:37]}  c6 {[%clk 0:02:36]} 12. bxc6 {[%clk 0:02:19]}  Nxc6 {[%clk 0:02:37]} 13. e4 {[%clk 0:02:14]}  Nf6 {[%clk 0:02:29]} 14. Nc3 {[%clk 0:02:13]}  b5 {[%clk 0:02:24]} 15. Nxb5 {[%clk 0:02:11]}  Qb6 {[%clk 0:02:23]} 16. Rb1 {[%clk 0:02:10]}  Na5 {[%clk 0:01:35]} 17. Qxa4 {[%clk 0:02:06]}  Nd7 {[%clk 0:01:22]} 18. Qd4 {[%clk 0:01:51]}  Qxd4 {[%clk 0:01:16]} 19. Bxd4 {[%clk 0:01:51]}  Rfc8 {[%clk 0:01:11]} 20. Ne5 {[%clk 0:01:49]}  Nxe5 {[%clk 0:01:05]} 21. Bxe5 {[%clk 0:01:50]}  Ba6 {[%clk 0:01:06]} 22. Nc7 {[%clk 0:01:49]}  Bxd3 {[%clk 0:01:04]} 23. Nxa8 {[%clk 0:01:48]}  Rxa8 {[%clk 0:01:05]} 24. a4 {[%clk 0:01:42]}  Bxb1 {[%clk 0:00:45]} 25. Rxb1 {[%clk 0:01:41]}  Nc6 {[%clk 0:00:46]} 26. Bc7 {[%clk 0:01:37]}  Ra7 {[%clk 0:00:27]} 27. e5 {[%clk 0:01:07]}  Rxc7 {[%clk 0:00:26]} 28. Rc1 {[%clk 0:01:07]}  Bd8 {[%clk 0:00:14]} 29. Bxc6 {[%clk 0:01:05]}  Kf8 {[%clk 0:00:14]} 30. Rd1 {[%clk 0:00:59]}  Ke7 {[%clk 0:00:14]} 31. Bb5 {[%clk 0:00:57]}  f6 {[%clk 0:00:12]} 32. exf6+ {[%clk 0:00:42]}  gxf6 {[%clk 0:00:13]} 33. Rd4 {[%clk 0:00:40]}  Ra7 {[%clk 0:00:13]} 34. Rh4 {[%clk 0:00:37]}  Kd6 {[%clk 0:00:13]} 35. Kg2 {[%clk 0:00:36]}  Bb6 {[%clk 0:00:13]} 36. Rh6 {[%clk 0:00:35]}  Ke5 {[%clk 0:00:12]} 37. h4 {[%clk 0:00:28]}  f5 {[%clk 0:00:11]} 38. Bc4 {[%clk 0:00:24]}  Re7 {[%clk 0:00:11]} 39. Kf3 {[%clk 0:00:16]}  Kd6 {[%clk 0:00:11]} 40. Ke2 {[%clk 0:00:15]}  Ke5 {[%clk 0:00:11]} 41. f4+ {[%clk 0:00:15]}  Kd6 {[%clk 0:00:11]} 42. Kf3 {[%clk 0:00:15]}  Bc7 {[%clk 0:00:07]} 43. g4 {[%clk 0:00:15]}  fxg4+ {[%clk 0:00:06]} 44. Kxg4 {[%clk 0:00:16]}  Rg7+ {[%clk 0:00:05]} 45. Kf3 {[%clk 0:00:16]}  Re7 {[%clk 0:00:05]} 46. f5 {[%clk 0:00:16]}  Ke5 {[%clk 0:00:06]} 47. Rxe6+ {[%clk 0:00:16]}  Rxe6 {[%clk 0:00:06]} 48. fxe6 {[%clk 0:00:16]}  Bd8 {[%clk 0:00:06]} 49. a5 {[%clk 0:00:14]}  Kd6 {[%clk 0:00:05]} 50. a6 {[%clk 0:00:14]}  Bb6 {[%clk 0:00:06]} 51. Kg4 {[%clk 0:00:14]}  h6 {[%clk 0:00:07]} 52. Kh5 {[%clk 0:00:14]}  Be3 {[%clk 0:00:07]} 53. Kg6 {[%clk 0:00:15]}  Ke7 {[%clk 0:00:08]} 54. h5 {[%clk 0:00:14]}  Ke8 {[%clk 0:00:07]} 55. Kf6 {[%clk 0:00:13]}  Bd4+ {[%clk 0:00:08]} 56. Kf5 {[%clk 0:00:13]}  Ke7 {[%clk 0:00:09]} 57. Ke4 {[%clk 0:00:14]}  Ba7 {[%clk 0:00:00]} 58. Kd5 {[%clk 0:00:15]} 1-0


[Site "https://www.chess.com"]

[Event "Titled Tuesday Blitz August 08 Early 2023"]
[White "Skuhala, Jernej"]
[Black "Pranesh M"]
[WhiteFideId "14605651"]
[BlackFideId "35028600"]
[WhiteElo "2641"]
[BlackElo "3044"]
[Result "0-1"]
[Round "2"]
[TimeControl "180+1"]
[Date "2023.08.08"]
[WhiteClock "0:00:05"]
[BlackClock "0:00:47"]
[Board "8"]

1. e4 {[%clk 0:02:59]}  e5 {[%clk 0:03:00]} 2. Nf3 {[%clk 0:02:58]}  Nc6 {[%clk 0:03:01]} 3. Bb5 {[%clk 0:02:55]}  a6 {[%clk 0:03:01]} 4. Ba4 {[%clk 0:02:55]}  Nf6 {[%clk 0:03:01]} 5. O-O {[%clk 0:02:55]}  Bc5 {[%clk 0:03:02]} 6. c3 {[%clk 0:02:52]}  O-O {[%clk 0:03:02]} 7. d4 {[%clk 0:02:52]}  Ba7 {[%clk 0:03:03]} 8. Bxc6 {[%clk 0:02:46]}  dxc6 {[%clk 0:03:04]} 9. Nxe5 {[%clk 0:02:46]}  Nxe4 {[%clk 0:03:04]} 10. Qf3 {[%clk 0:02:46]}  Nd6 {[%clk 0:03:02]} 11. Nd2 {[%clk 0:02:45]}  Be6 {[%clk 0:03:01]} 12. Qg3 {[%clk 0:02:38]}  f6 {[%clk 0:02:58]} 13. Nd3 {[%clk 0:02:34]}  Qd7 {[%clk 0:02:51]} 14. Nb3 {[%clk 0:02:24]}  Qf7 {[%clk 0:02:37]} 15. Nbc5 {[%clk 0:02:15]}  Bf5 {[%clk 0:02:35]} 16. Bf4 {[%clk 0:02:05]}  Rad8 {[%clk 0:02:34]} 17. Bxd6 {[%clk 0:02:01]}  cxd6 {[%clk 0:02:34]} 18. Nb3 {[%clk 0:01:57]}  d5 {[%clk 0:02:34]} 19. Qe3 {[%clk 0:01:31]}  Bb8 {[%clk 0:02:32]} 20. Rfe1 {[%clk 0:01:28]}  Qc7 {[%clk 0:02:07]} 21. g3 {[%clk 0:01:24]}  Qc8 {[%clk 0:01:57]} 22. Nf4 {[%clk 0:01:19]}  b6 {[%clk 0:01:44]} 23. a4 {[%clk 0:01:10]}  a5 {[%clk 0:01:43]} 24. Qd2 {[%clk 0:01:07]}  Rfe8 {[%clk 0:01:36]} 25. Rac1 {[%clk 0:00:49]}  Be4 {[%clk 0:01:36]} 26. Re3 {[%clk 0:00:26]}  g5 {[%clk 0:01:16]} 27. Ng2 {[%clk 0:00:26]}  Kf7 {[%clk 0:01:08]} 28. f3 {[%clk 0:00:24]}  Bg6 {[%clk 0:01:07]} 29. Rce1 {[%clk 0:00:24]}  h5 {[%clk 0:01:08]} 30. Nc1 {[%clk 0:00:24]}  Rxe3 {[%clk 0:01:07]} 31. Rxe3 {[%clk 0:00:22]}  Bd6 {[%clk 0:01:08]} 32. Nd3 {[%clk 0:00:19]}  Rh8 {[%clk 0:01:07]} 33. Nf2 {[%clk 0:00:19]}  h4 {[%clk 0:01:05]} 34. gxh4 {[%clk 0:00:17]}  gxh4 {[%clk 0:01:06]} 35. Ng4 {[%clk 0:00:17]}  h3 {[%clk 0:01:06]} 36. Ne1 {[%clk 0:00:16]}  Bf4 {[%clk 0:01:00]} 37. Re7+ {[%clk 0:00:16]}  Kxe7 {[%clk 0:01:01]} 38. Qxf4 {[%clk 0:00:17]}  Bf5 {[%clk 0:01:02]} 39. Ne3 {[%clk 0:00:15]}  Be6 {[%clk 0:01:00]} 40. Kf2 {[%clk 0:00:15]}  Qb8 {[%clk 0:01:00]} 41. Nd3 {[%clk 0:00:12]}  Rg8 {[%clk 0:00:56]} 42. Qxb8 {[%clk 0:00:08]}  Rxb8 {[%clk 0:00:57]} 43. Nf4 {[%clk 0:00:09]}  Bd7 {[%clk 0:00:57]} 44. Kg3 {[%clk 0:00:08]}  Rg8+ {[%clk 0:00:56]} 45. Kf2 {[%clk 0:00:07]}  Kd6 {[%clk 0:00:56]} 46. b3 {[%clk 0:00:05]}  Rb8 {[%clk 0:00:53]} 47. Nh5 {[%clk 0:00:04]}  Ke7 {[%clk 0:00:52]} 48. Nf4 {[%clk 0:00:04]}  b5 {[%clk 0:00:52]} 49. Nd3 {[%clk 0:00:03]}  bxa4 {[%clk 0:00:52]} 50. bxa4 {[%clk 0:00:03]}  Rb3 {[%clk 0:00:52]} 51. Nd1 {[%clk 0:00:03]}  Rb1 {[%clk 0:00:52]} 52. Ke2 {[%clk 0:00:04]}  Bf5 {[%clk 0:00:50]} 53. Nc5 {[%clk 0:00:04]}  Ra1 {[%clk 0:00:48]} 54. Ne3 {[%clk 0:00:03]}  Ra2+ {[%clk 0:00:49]} 55. Kf1 {[%clk 0:00:04]}  Bc8 {[%clk 0:00:47]} 56. Kg1 {[%clk 0:00:04]}  Kf7 {[%clk 0:00:47]} 57. f4 {[%clk 0:00:04]}  Re2 {[%clk 0:00:48]} 58. Nf1 {[%clk 0:00:05]}  Rg2+ {[%clk 0:00:48]} 59. Kh1 {[%clk 0:00:05]}  Rc2 {[%clk 0:00:48]} 60. Kg1 {[%clk 0:00:03]}  Rxc3 {[%clk 0:00:48]} 61. Kf2 {[%clk 0:00:03]}  Rc4 {[%clk 0:00:49]} 62. Ke3 {[%clk 0:00:04]}  Rc1 {[%clk 0:00:47]} 63. Ng3 {[%clk 0:00:04]}  Rc2 {[%clk 0:00:47]} 64. Ne2 {[%clk 0:00:05]}  Bg4 {[%clk 0:00:47]} 65. Ng3 {[%clk 0:00:05]}  Rxh2 {[%clk 0:00:47]} 66. Nf1 {[%clk 0:00:05]}  Re2+ {[%clk 0:00:47]} 0-1


[Site "https://www.chess.com"]